bitfinex/quotes_BTCUSD_20250218
["timestamp","ask_amount","ask_price","bid_price","bid_amount"]
[1739894069477,0.0001701,95689.0,95687.0,0.006]
[1739894069932,0.1569271,95689.0,95687.0,0.006]
[1739894070132,0.0001701,95689.0,95687.0,0.006]
[1739894070429,0.0001701,95689.0,95687.0,0.1084037]
[1739894070553,0.0001701,95689.0,95677.0,0.00013218]
[1739894070554,0.0001701,95689.0,95688.0,0.34840302]
[1739894070761,0.0001701,95689.0,95688.0,0.19164402]
[1739894071561,0.0001701,95689.0,95688.0,0.11334402]
[1739894071824,0.1569271,95689.0,95688.0,0.11334402]
[1739894072310,0.1569271,95689.0,95687.0,0.006]
[1739894072311,0.15677,95681.0,95680.0,0.00034]
[1739894072535,0.15677,95681.0,95680.0,0.10284365]
[1739894072892,0.0001701,95689.0,95680.0,0.10284365]
[1739894073120,0.156765,95685.0,95681.0,0.10250365]
[1739894073328,0.156761,95688.0,95681.0,0.10250365]
[1739894073577,0.0001701,95689.0,95688.0,0.004]
[1739894074016,0.0001701,95689.0,95681.0,0.10250365]
[1739894074231,0.0001701,95689.0,95682.0,0.00104502]
[1739894074430,0.0001701,95689.0,95686.0,0.156762]
[1739894074664,0.0001701,95689.0,95687.0,0.14987082]
[1739894075487,0.0001701,95689.0,95687.0,0.10250365]
[1739894075747,0.156759,95688.0,95687.0,0.10250365]
[1739894075954,0.0001701,95689.0,95687.0,0.10250365]
[1739894076152,0.156759,95688.0,95687.0,0.10250365]
[1739894076670,0.0001701,95689.0,95687.0,0.10250365]
[1739894076875,0.0001701,95689.0,95688.0,0.01425037]
[1739894077077,0.1569271,95689.0,95688.0,0.10250365]
[1739894078010,0.15672,95681.0,95680.0,0.00034]
[1739894078216,0.156768,95683.0,95680.0,0.10284365]
[1739894078592,0.156769,95682.0,95681.0,0.11771123]
[1739894078997,0.15677,95681.0,95680.0,0.00034]
[1739894079193,0.38177,95681.0,95680.0,0.00034]
[1739894079411,0.40477,95681.0,95680.0,0.00034]
[1739894080130,1.537099,95681.0,95680.0,0.00034]
[1739894080379,1.37679,95681.0,95680.0,0.00034]
[1739894080799,0.306808,95658.0,95651.0,0.09376649]
[1739894081003,0.306808,95658.0,95657.0,0.00047243]
[1739894082441,0.15,95666.0,95657.0,0.00047243]
[1739894082763,0.156808,95658.0,95657.0,0.00047243]
[1739894083295,0.17567823,95658.0,95657.0,0.00047243]
[1739894083945,0.18966017,95658.0,95657.0,0.00047243]
[1739894084155,0.17567823,95658.0,95657.0,0.00047243]
[1739894084371,1.78007988,95658.0,95657.0,4.3e-07]
[1739894084585,0.57588188,95658.0,95657.0,4.3e-07]
[1739894085406,0.58376197,95658.0,95657.0,4.3e-07]
[1739894088271,0.329828,95646.0,95645.0,0.0003402]
[1739894088741,2.055493,95646.0,95645.0,0.0003402]
[1739894089370,2.07188159,95646.0,95645.0,0.0003402]
[1739894089580,2.27637788,95646.0,95645.0,2e-07]
[1739894089786,0.55071288,95646.0,95645.0,2e-07]
[1739894089995,0.58214988,95646.0,95645.0,2e-07]
[1739894090614,0.329854,95630.0,95599.0,0.1228]
[1739894091647,0.306854,95630.0,95599.0,0.1228]
[1739894091855,0.306854,95630.0,95601.0,0.209201]
[1739894092058,0.306854,95630.0,95602.0,0.00104585]
[1739894092266,0.306854,95630.0,95619.0,0.0789]
[1739894093685,0.156854,95630.0,95619.0,0.0789]
[1739894094741,0.156854,95630.0,95629.0,0.0013404]
[1739894095162,0.156854,95630.0,95629.0,0.0003404]
[1739894096400,0.031434,95641.0,95629.0,0.0003404]
[1739894096530,0.156849,95634.0,95629.0,0.10284405]
[1739894096732,0.031434,95641.0,95630.0,0.10250365]
[1739894096936,0.031434,95641.0,95631.0,0.08194564]
[1739894097159,0.031434,95641.0,95632.0,0.10250365]
[1739894097984,0.031434,95641.0,95633.0,0.209132]
[1739894098191,0.031434,95641.0,95634.0,0.10250365]
[1739894098393,0.031434,95641.0,95635.0,0.0617042]
[1739894098639,0.156827,95647.0,95638.0,0.156841]
[1739894098901,0.0009979,95649.0,95640.0,0.0775]
[1739894099105,0.0009979,95649.0,95642.0,0.047]
[1739894099303,0.0009979,95649.0,95643.0,0.10354902]
[1739894099499,0.0009979,95649.0,95648.0,0.156825]
[1739894099770,0.0009979,95649.0,95648.0,0.25932865]
[1739894100071,0.0009979,95649.0,95648.0,0.33966252]
[1739894100310,0.0009979,95649.0,95648.0,0.42076252]
[1739894100743,0.0009979,95649.0,95648.0,0.46716252]
[1739894101377,0.00030213,95658.0,95654.0,0.156814]
[1739894101573,0.156811,95656.0,95655.0,0.10250365]
[1739894101777,0.00030213,95658.0,95655.0,0.10250365]
[1739894102161,0.00030213,95658.0,95657.0,0.15681]
[1739894102395,0.00030213,95658.0,95657.0,0.25931365]
[1739894102826,0.00030213,95658.0,95657.0,0.34141365]
[1739894103035,0.00030213,95658.0,95657.0,0.41737212]
[1739894104304,0.15,95699.0,95665.0,0.156796]
[1739894104511,1.20684418,95759.0,95665.0,0.156796]
[1739894104512,0.156779,95676.0,95666.0,0.10250365]
[1739894105567,0.156764,95685.0,95666.0,0.10250365]
[1739894105773,0.156767,95683.0,95670.0,0.156787]
[1739894106016,0.156771,95681.0,95671.0,0.10250365]
[1739894106190,0.37686731,95690.0,95672.0,0.156785]
[1739894106429,0.37686731,95690.0,95673.0,0.13443755]
[1739894106633,0.156769,95682.0,95673.0,0.13443755]
[1739894106837,0.156771,95681.0,95673.0,0.13443755]
[1739894107044,0.209012,95688.0,95673.0,0.13443755]
[1739894107249,0.156764,95685.0,95673.0,0.13443755]
[1739894107425,0.156764,95685.0,95674.0,0.12275439]
[1739894107647,0.16785931,95690.0,95675.0,0.10250365]
[1739894107864,0.156757,95689.0,95676.0,0.156779]
[1739894108204,0.16785931,95690.0,95677.0,0.10250365]
[1739894108839,0.156767,95683.0,95677.0,0.10250365]
[1739894109044,0.16785931,95690.0,95678.0,0.0382044]
[1739894109247,0.209012,95688.0,95679.0,0.10250365]
[1739894109427,0.156765,95685.0,95679.0,0.10199526]
[1739894109651,0.0001702,95681.0,95679.0,0.10199526]
[1739894109861,0.156772,95680.0,95679.0,0.10199526]
[1739894110089,0.20903,95680.0,95665.0,0.0803]
[1739894110303,0.156779,95676.0,95668.0,0.10250365]
[1739894110499,0.156782,95674.0,95668.0,0.10250365]
[1739894110710,0.14435632,95680.0,95668.0,0.10250365]
[1739894110917,0.15679,95669.0,95668.0,0.10250365]
[1739894111553,0.14435632,95680.0,95668.0,0.10250365]
[1739894111758,0.156787,95671.0,95668.0,0.10250365]
[1739894111960,0.14435632,95680.0,95668.0,0.10250365]
[1739894112167,0.156788,95671.0,95669.0,0.0193054]
[1739894112377,0.16785931,95690.0,95670.0,0.10250365]
[1739894112584,0.15,95689.0,95671.0,0.00104513]
[1739894112800,0.16785931,95690.0,95672.0,0.10250365]
[1739894113010,0.156772,95680.0,95672.0,0.10250365]
[1739894113227,0.156772,95680.0,95672.0,0.16032419]
[1739894113701,0.14435632,95682.0,95672.0,0.16032419]
[1739894113901,0.156777,95678.0,95672.0,0.10250365]
[1739894114112,0.14435632,95682.0,95672.0,0.10250365]
[1739894114519,0.156773,95680.0,95672.0,0.10250365]
[1739894115059,0.156784,95673.0,95672.0,0.10250365]
[1739894115289,0.156791,95669.0,95665.0,0.0803]
[1739894115497,0.14435632,95675.0,95666.0,0.10250365]
[1739894116032,0.156772,95680.0,95666.0,0.10250365]
[1739894116217,0.15,95689.0,95667.0,0.00104522]
[1739894116607,0.15,95689.0,95658.0,0.0758]
[1739894116608,0.15,95689.0,95668.0,0.29055634]
[1739894116812,0.15,95689.0,95668.0,0.13376434]
[1739894116813,0.14435632,95680.0,95668.0,0.13376434]
[1739894117017,0.156786,95672.0,95668.0,0.13376434]
[1739894117197,0.14435632,95680.0,95672.0,0.003]
[1739894117334,0.14435632,95680.0,95673.0,0.10250365]
[1739894117532,0.156784,95673.0,95672.0,0.003]
[1739894117745,0.35338632,95680.0,95672.0,0.003]
[1739894117988,0.14435632,95680.0,95660.0,0.209071]
[1739894118186,0.14435632,95680.0,95662.0,0.209069]
[1739894118408,0.14435632,95680.0,95668.0,0.001]
[1739894118588,0.14435632,95680.0,95669.0,0.10250365]
[1739894118792,0.209012,95688.0,95670.0,0.156787]
[1739894119002,0.15677,95682.0,95671.0,0.10250365]
[1739894119195,0.15,95689.0,95675.0,0.0766]
[1739894119405,0.156765,95685.0,95676.0,0.10250365]
[1739894119604,0.02350299,95690.0,95676.0,0.10250365]
[1739894119852,0.00013218,95690.0,95688.0,0.156758]
[1739894120060,0.00013218,95690.0,95689.0,0.10354858]
[1739894120193,0.00013218,95690.0,95689.0,0.10250365]
[1739894122078,0.00013218,95690.0,95678.0,0.0451]
[1739894122275,0.00013218,95690.0,95681.0,0.15677]
[1739894122531,0.00013218,95690.0,95682.0,0.10250365]
[1739894122736,0.00013218,95690.0,95683.0,0.00104502]
[1739894122938,0.00013218,95690.0,95684.0,0.10250365]
[1739894123145,0.00113218,95690.0,95689.0,0.007]
[1739894123316,0.00113218,95690.0,95689.0,0.29915758]
[1739894123531,0.00113218,95690.0,95689.0,0.29811262]
[1739894123741,0.00113218,95690.0,95689.0,0.14135562]
[1739894123968,0.00113218,95690.0,95689.0,0.29915755]
[1739894124193,0.00113218,95690.0,95689.0,0.29811262]
[1739894124369,0.00113218,95690.0,95689.0,0.37881262]
[1739894124566,0.00113218,95690.0,95689.0,0.42711262]
[1739894125546,0.00013218,95690.0,95689.0,0.42011262]
[1739894125961,0.00013218,95690.0,95689.0,0.27035562]
[1739894125962,0.00113218,95690.0,95689.0,0.27035562]
[1739894128633,0.00013218,95690.0,95689.0,0.26335562]
[1739894129052,0.00013218,95690.0,95689.0,0.27035562]
[1739894129373,0.00013218,95690.0,95689.0,0.42011262]
[1739894129547,0.00013218,95690.0,95689.0,0.26335562]
[1739894129685,0.00013218,95690.0,95689.0,0.27035562]
[1739894130088,0.00013218,95690.0,95689.0,0.22205562]
[1739894130363,0.00013218,95690.0,95689.0,0.21505562]
[1739894132116,0.00148,95680.0,95679.0,0.047]
[1739894132324,0.00148,95680.0,95679.0,0.21746365]
[1739894132548,0.00148,95680.0,95679.0,0.14950365]
[1739894132780,0.00148,95680.0,95679.0,0.30627765]
[1739894132982,0.00148,95680.0,95679.0,0.38701262]
[1739894133215,0.0001701,95690.0,95679.0,0.23023862]
[1739894133424,0.15676,95688.0,95680.0,0.10250365]
[1739894133642,0.0001701,95690.0,95680.0,0.10250365]
[1739894133848,0.156759,95688.0,95681.0,0.03132386]
[1739894134058,0.0001701,95690.0,95682.0,0.10250365]
[1739894134257,0.0001701,95690.0,95689.0,0.237857]
[1739894134460,0.14707751,95720.0,95698.0,0.208988]
[1739894134632,0.14707751,95720.0,95699.0,0.10250365]
[1739894134834,0.17108724,95720.0,95699.0,0.10250365]
[1739894135037,0.38003024,95720.0,95700.0,0.02696961]
[1739894135394,0.156725,95709.0,95701.0,0.10250365]
[1739894135827,0.156719,95713.0,95701.0,0.10250365]
[1739894136038,0.15671,95719.0,95701.0,0.10250365]
[1739894136221,0.15671,95718.0,95706.0,0.156729]
[1739894136398,0.02400973,95720.0,95707.0,0.1542497]
[1739894136605,0.156722,95711.0,95707.0,0.10250365]
[1739894137004,0.156708,95719.0,95707.0,0.10250365]
[1739894137211,0.156724,95710.0,95707.0,0.10250365]
[1739894137509,0.17017229,95720.0,95709.0,0.0792]
[1739894137510,0.156716,95715.0,95709.0,0.0792]
[1739894137712,0.156717,95714.0,95710.0,0.10250365]
[1739894138031,0.02309478,95720.0,95710.0,0.10250365]
[1739894138182,0.156721,95711.0,95710.0,0.10250365]
[1739894138389,0.208956,95714.0,95710.0,0.10250365]
[1739894138686,0.14707751,95720.0,95710.0,0.10250365]
[1739894139009,0.023,95718.0,95689.0,0.1273]
[1739894139218,0.14707751,95713.0,95690.0,0.10250365]
[1739894139423,0.14707751,95700.0,95690.0,0.10250365]
[1739894139620,0.156742,95699.0,95690.0,0.10250365]
[1739894139995,0.17100693,95720.0,95690.0,0.10250365]
[1739894140199,0.156721,95711.0,95691.0,0.02298037]
[1739894140512,0.156721,95712.0,95692.0,0.10250365]
[1739894140720,0.15,95716.0,95699.0,0.156741]
[1739894140916,0.01637567,95717.0,95700.0,0.10250365]
[1739894141148,0.208961,95712.0,95701.0,0.04682397]
[1739894141354,0.15,95714.0,95702.0,0.10250365]
[1739894141527,0.01637567,95717.0,95702.0,0.10250365]
[1739894141528,0.01637567,95717.0,95703.0,0.081]
[1739894141727,0.15,95718.0,95704.0,0.10250365]
[1739894141930,0.15,95721.0,95704.0,0.11060365]
[1739894142134,0.156715,95715.0,95704.0,0.11060365]
[1739894142338,0.15,95719.0,95705.0,0.01936037]
[1739894142546,0.156711,95717.0,95706.0,0.25923265]
[1739894142741,0.15671,95718.0,95707.0,0.156728]
[1739894142998,0.15671,95718.0,95708.0,0.10250365]
[1739894143479,0.17967934,95720.0,95709.0,0.156724]
[1739894143682,0.00013215,95724.0,95710.0,0.10354839]
[1739894143837,0.00013215,95724.0,95711.0,0.047]
[1739894144035,0.00013215,95724.0,95712.0,0.10354832]
[1739894144247,0.00013215,95724.0,95723.0,0.156702]
[1739894144427,0.00013215,95724.0,95723.0,0.33740565]
[1739894144626,0.00013215,95724.0,95723.0,0.41293462]
[1739894146154,0.00030225,95724.0,95723.0,0.41293462]
[1739894146567,0.00030225,95724.0,95723.0,0.41993462]
[1739894146765,0.00030225,95724.0,95723.0,0.41293462]
[1739894146983,0.00030225,95724.0,95723.0,0.25623262]
[1739894147536,0.00030225,95724.0,95723.0,0.26323262]
[1739894147745,0.00030225,95724.0,95723.0,0.18770365]
[1739894149258,0.00030225,95724.0,95723.0,0.10250365]
[1739894149476,0.15700225,95724.0,95723.0,0.10250365]
[1739894149654,0.15700225,95724.0,95723.0,0.10950365]
[1739894150059,0.15700225,95724.0,95723.0,0.10250365]
[1739894150730,0.156715,95715.0,95711.0,0.047]
[1739894150928,0.00030225,95724.0,95723.0,0.007]
[1739894151133,0.15700225,95724.0,95723.0,0.007]
[1739894152016,0.00030225,95724.0,95723.0,0.007]
[1739894152223,0.15700225,95724.0,95723.0,0.007]
[1739894152701,0.156707,95720.0,95712.0,0.03912604]
[1739894152931,0.156707,95720.0,95713.0,0.16215915]
[1739894153350,0.208938,95722.0,95713.0,0.16215915]
[1739894153526,0.156708,95720.0,95713.0,0.16215915]
[1739894154145,0.156708,95719.0,95713.0,0.16215915]
[1739894154552,0.20923625,95724.0,95713.0,0.16215915]
[1739894154751,0.00030225,95724.0,95714.0,0.06019852]
[1739894154977,0.15700225,95724.0,95723.0,0.007]
[1739894156771,0.156713,95716.0,95715.0,0.10250365]
[1739894156981,0.156718,95713.0,95712.0,0.03912604]
[1739894157188,0.156716,95714.0,95713.0,0.0114926]
[1739894157538,0.156716,95714.0,95713.0,0.007]
[1739894157944,0.156705,95721.0,95720.0,0.0003406]
[1739894160425,0.329705,95721.0,95720.0,0.0003406]
[1739894160844,0.34608008,95721.0,95720.0,0.0003406]
[1739894161031,0.76940608,95721.0,95720.0,0.0003406]
[1739894161227,2.09258108,95721.0,95720.0,0.0003406]
[1739894161431,0.99420908,95721.0,95720.0,0.0003406]
[1739894161629,0.37749008,95721.0,95720.0,0.0003406]
[1739894161970,0.65414108,95721.0,95720.0,0.0003406]
[1739894162192,0.54945708,95721.0,95720.0,0.0003406]
[1739894162403,0.77175908,95721.0,95720.0,0.0003406]
[1739894162827,0.85788765,95721.0,95720.0,0.0003406]
[1739894164469,2.05649065,95721.0,95720.0,0.0003406]
[1739894165084,1.69554865,95721.0,95720.0,0.0003406]
[1739894165382,1.14662965,95721.0,95720.0,0.0003406]
[1739894167247,0.87426447,95721.0,95720.0,0.0003406]
[1739894167996,0.92481708,95721.0,95720.0,0.0003406]
[1739894168149,0.83457008,95721.0,95720.0,0.0003406]
[1739894169163,0.49913808,95721.0,95720.0,0.0003406]
[1739894169363,1.03355008,95721.0,95720.0,0.0003406]
[1739894170250,1.03372038,95721.0,95720.0,0.0003406]
[1739894170681,0.22380473,95721.0,95720.0,0.0003406]
[1739894171095,0.37380473,95721.0,95720.0,0.0003406]
[1739894171542,0.32325212,95721.0,95720.0,0.0003406]
[1739894171719,0.17325212,95721.0,95720.0,0.0003406]
[1739894172133,0.01654712,95721.0,95720.0,0.0003406]
[1739894172502,0.0001703,95721.0,95720.0,0.0003406]
[1739894172706,0.1568753,95721.0,95720.0,0.0023406]
[1739894173079,0.0001703,95721.0,95720.0,0.0003406]
[1739894173280,0.1568753,95721.0,95720.0,0.0003406]
[1739894173627,0.1568753,95721.0,95720.0,0.0023406]
[1739894174173,0.0001703,95721.0,95720.0,0.0023406]
[1739894174384,0.0001703,95721.0,95720.0,0.01824626]
[1739894174591,0.0001703,95721.0,95720.0,0.0023406]
[1739894175224,0.0001703,95721.0,95720.0,0.0003406]
[1739894175597,0.1568753,95721.0,95720.0,0.0043406]
[1739894175956,0.0001703,95721.0,95720.0,0.0043406]
[1739894176365,0.1568753,95721.0,95720.0,0.02044646]
[1739894176574,0.1568753,95721.0,95720.0,0.0043406]
[1739894179338,0.0001703,95721.0,95720.0,0.0003406]
[1739894179950,0.1568753,95721.0,95720.0,0.0033406]
[1739894180310,0.1568753,95721.0,95720.0,0.0003406]
[1739894180724,0.1568753,95721.0,95720.0,0.0043406]
[1739894182329,0.3068753,95721.0,95720.0,0.0043406]
[1739894182537,0.3298753,95721.0,95720.0,0.0043406]
[1739894182863,0.34624915,95721.0,95720.0,0.0043406]
[1739894183066,0.3298753,95721.0,95720.0,0.0043406]
[1739894183752,0.3298753,95721.0,95720.0,0.0003406]
[1739894184101,2.0505733,95721.0,95720.0,0.0003406]
[1739894184302,2.0538613,95721.0,95720.0,0.0003406]
[1739894184590,2.0280003,95721.0,95720.0,0.0003406]
[1739894184796,0.15,95720.0,95692.0,0.0479]
[1739894185003,0.156751,95693.0,95692.0,0.0479]
[1739894185730,0.156767,95683.0,95682.0,0.1292]
[1739894185934,0.156767,95683.0,95682.0,0.24465767]
[1739894186146,0.156767,95683.0,95682.0,0.1292]
[1739894186349,0.156767,95684.0,95682.0,0.1292]
[1739894186556,0.02926166,95683.0,95682.0,0.1292]
[1739894186672,0.156767,95684.0,95682.0,0.0816]
[1739894186879,0.156767,95684.0,95679.0,0.0003402]
[1739894186880,0.156772,95680.0,95679.0,0.0003402]
[1739894187100,0.156772,95680.0,95679.0,0.11075005]
[1739894187301,0.02904553,95683.0,95679.0,0.11075005]
[1739894187507,0.156772,95680.0,95679.0,0.00047238]
[1739894188161,0.306772,95680.0,95679.0,0.00047238]
[1739894190259,0.306772,95680.0,95679.0,0.00347238]
[1739894190466,0.306772,95680.0,95679.0,0.00047238]
[1739894190868,0.306772,95680.0,95679.0,0.00347238]
[1739894194184,0.15,95680.0,95679.0,0.00347238]
[1739894194357,0.02957481,95683.0,95679.0,0.01132962]
[1739894194564,0.15,95685.0,95679.0,0.00347238]
[1739894194760,0.15,95685.0,95679.0,0.10597603]
[1739894194761,0.02884293,95685.0,95679.0,0.10597603]
[1739894194961,0.208991,95698.0,95681.0,0.0485]
[1739894195186,0.15,95697.0,95682.0,0.10250365]
[1739894195379,0.15,95697.0,95682.0,0.12546125]
[1739894195712,0.209008,95690.0,95682.0,0.12546125]
[1739894195841,0.156763,95686.0,95682.0,0.12546125]
[1739894196201,0.156766,95684.0,95682.0,0.12546125]
[1739894196523,0.07953377,95691.0,95682.0,0.10250365]
[1739894196740,0.05055261,95691.0,95683.0,0.156767]
[1739894196881,0.05055261,95691.0,95684.0,0.10250365]
[1739894197407,0.05055261,95691.0,95679.0,0.00347238]
[1739894197408,0.0163787,95709.0,95691.0,0.0814]
[1739894197609,0.0001701,95724.0,95700.0,0.0814]
[1739894197965,0.02908656,95724.0,95716.0,0.0464]
[1739894198169,0.02908656,95724.0,95717.0,0.25921465]
[1739894198349,0.02908656,95724.0,95718.0,0.0782]
[1739894198580,0.02908656,95724.0,95719.0,0.25921165]
[1739894198801,0.02908656,95724.0,95720.0,0.03838117]
[1739894198972,0.02908656,95724.0,95720.0,0.14088482]
[1739894199432,0.00030245,95721.0,95720.0,0.14088482]
[1739894200582,0.15700745,95721.0,95720.0,0.14088482]
[1739894201730,0.00030245,95721.0,95720.0,0.14088482]
[1739894201967,0.00030245,95721.0,95720.0,0.14588482]
[1739894202169,0.00030245,95721.0,95720.0,0.14088482]
[1739894202351,0.15700745,95721.0,95720.0,0.14088482]
[1739894203630,0.15700745,95721.0,95720.0,0.14488482]
[1739894203840,0.00030245,95721.0,95720.0,0.14488482]
[1739894204053,0.00030245,95721.0,95720.0,0.14088482]
[1739894204508,0.00030245,95721.0,95720.0,0.14488482]
[1739894204700,0.00030245,95721.0,95720.0,0.14088482]
[1739894204905,0.00030245,95721.0,95720.0,0.29759182]
[1739894205162,0.00030245,95721.0,95720.0,0.14588482]
[1739894205651,0.00030245,95721.0,95720.0,0.14088482]
[1739894206053,0.00030245,95721.0,95720.0,0.10250365]
[1739894206260,0.15700745,95721.0,95720.0,0.10250365]
[1739894206669,0.15700745,95721.0,95698.0,0.0838614]
[1739894206670,0.208942,95720.0,95705.0,0.0496]
[1739894206870,0.156729,95706.0,95705.0,0.0496]
[1739894207024,0.15,95719.0,95705.0,0.15210365]
[1739894207222,0.15,95719.0,95706.0,0.10250365]
[1739894207430,0.15,95719.0,95707.0,0.208971]
[1739894207632,0.15,95719.0,95708.0,0.10250365]
[1739894207832,0.00030245,95721.0,95708.0,0.10250365]
[1739894208082,0.156715,95716.0,95708.0,0.10250365]
[1739894208384,0.00030245,95721.0,95709.0,0.0463303]
[1739894208581,0.15,95718.0,95710.0,0.10250365]
[1739894208910,0.208953,95716.0,95710.0,0.10250365]
[1739894209054,0.156715,95715.0,95710.0,0.10250365]
[1739894209251,0.156717,95714.0,95710.0,0.10250365]
[1739894209647,0.17773729,95716.0,95710.0,0.10250365]
[1739894209879,0.17773729,95716.0,95710.0,0.14960915]
[1739894210039,0.15,95719.0,95710.0,0.14360915]
[1739894210234,0.208947,95718.0,95710.0,0.10250365]
[1739894210447,0.15,95719.0,95710.0,0.10850365]
[1739894210858,0.15,95719.0,95710.0,0.006]
[1739894210859,0.156721,95711.0,95710.0,0.006]
[1739894211323,0.156733,95704.0,95703.0,0.0791]
[1739894211518,0.156733,95704.0,95703.0,0.10250365]
[1739894211725,0.156733,95704.0,95703.0,0.11275402]
[1739894212294,0.208965,95710.0,95703.0,0.11275402]
[1739894212493,0.358945,95719.0,95704.0,0.10250365]
[1739894212718,0.156725,95709.0,95704.0,0.10250365]
[1739894212923,0.208964,95710.0,95704.0,0.10250365]
[1739894213251,0.208921,95730.0,95705.0,0.0112754]
[1739894213399,0.156729,95706.0,95705.0,0.11377905]
[1739894213596,0.156729,95706.0,95705.0,0.10250365]
[1739894215412,0.156728,95708.0,95705.0,0.10250365]
[1739894215621,0.156729,95706.0,95705.0,0.10950365]
[1739894215824,0.156725,95709.0,95705.0,0.10950365]
[1739894216029,0.15,95722.0,95706.0,0.0119754]
[1739894216225,0.208942,95720.0,95706.0,0.0119754]
[1739894216551,0.156726,95708.0,95706.0,0.0119754]
[1739894216723,0.15,95719.0,95706.0,0.0119754]
[1739894217075,0.15,95719.0,95706.0,0.11447905]
[1739894217396,0.208954,95715.0,95707.0,0.012507]
[1739894217607,0.156716,95714.0,95707.0,0.012507]
[1739894217819,0.01637506,95723.0,95708.0,0.10250365]
[1739894217996,0.306709,95719.0,95709.0,0.0829]
[1739894218134,0.15,95719.0,95710.0,0.16514811]
[1739894218337,0.156713,95717.0,95710.0,0.10250365]
[1739894218587,0.156715,95716.0,95710.0,0.10250365]
[1739894219257,0.15671,95718.0,95710.0,0.10250365]
[1739894219488,0.30671,95719.0,95710.0,0.10250365]
[1739894219707,0.15,95719.0,95710.0,0.10250365]
[1739894219900,0.15,95719.0,95717.0,0.0471]
[1739894220105,0.15,95719.0,95718.0,0.10250365]
[1739894220655,0.00030245,95721.0,95718.0,0.10250365]
[1739894220873,0.00030245,95721.0,95720.0,0.156707]
[1739894221000,0.00030245,95721.0,95720.0,0.10250365]
[1739894221199,0.00030245,95721.0,95720.0,0.15402992]
[1739894221835,0.00030245,95721.0,95720.0,0.33751065]
[1739894224136,0.00030245,95721.0,95720.0,0.48751065]
[1739894224338,0.00030245,95721.0,95720.0,0.53291065]
[1739894224674,0.0001701,95724.0,95723.0,0.156702]
[1739894224870,0.0001701,95724.0,95723.0,0.48645359]
[1739894225076,0.0001701,95724.0,95723.0,0.4854093]
[1739894227112,0.0001701,95724.0,95723.0,0.50487044]
[1739894230436,0.0001701,95724.0,95723.0,0.82977044]
[1739894231854,0.0001701,95724.0,95723.0,0.83677044]
[1739894232653,0.0001701,95724.0,95723.0,0.82977044]
[1739894234455,0.0001701,95724.0,95723.0,0.83677044]
[1739894234603,0.0001701,95724.0,95723.0,0.82977044]
[1739894235015,0.0001701,95724.0,95723.0,0.83677044]
[1739894235441,0.0001701,95724.0,95723.0,0.82977044]
[1739894236020,0.0001701,95724.0,95723.0,0.83677044]
[1739894236222,0.0001701,95724.0,95723.0,0.82977044]
[1739894236576,0.15,95770.0,95724.0,0.0807]
[1739894236806,0.20889804,95761.0,95746.0,0.208883]
[1739894237007,0.156641,95760.0,95747.0,0.10250365]
[1739894237382,0.156641,95760.0,95749.0,0.156659]
[1739894237589,0.156641,95760.0,95750.0,0.10250365]
[1739894237791,0.156641,95760.0,95751.0,0.01832036]
[1739894238124,4.404e-05,95761.0,95752.0,0.10250365]
[1739894238879,4.404e-05,95761.0,95754.0,0.156651]
[1739894239083,4.404e-05,95761.0,95751.0,0.01832036]
[1739894239084,4.404e-05,95761.0,95755.0,0.10250365]
[1739894239246,4.404e-05,95761.0,95756.0,0.0329697]
[1739894239448,4.404e-05,95761.0,95757.0,0.10250365]
[1739894241178,0.15004404,95761.0,95757.0,0.10250365]
[1739894241751,4.404e-05,95761.0,95757.0,0.25914965]
[1739894241954,4.404e-05,95761.0,95758.0,0.0486335]
[1739894242160,4.404e-05,95761.0,95759.0,0.10250365]
[1739894242374,0.156641,95760.0,95759.0,0.10250365]
[1739894242575,4.404e-05,95761.0,95759.0,0.10250365]
[1739894243079,4.404e-05,95761.0,95757.0,0.006]
[1739894243284,0.156644,95758.0,95757.0,0.006]
[1739894244280,0.156644,95758.0,95747.0,0.01941093]
[1739894244281,0.156661,95748.0,95747.0,0.01941093]
[1739894244486,0.156666,95745.0,95744.0,0.3249]
[1739894244685,0.156666,95745.0,95744.0,0.42740365]
[1739894245580,0.156666,95745.0,95744.0,0.3249]
[1739894246010,0.156666,95745.0,95744.0,0.3319]
[1739894246443,0.156666,95745.0,95744.0,0.007]
[1739894246647,0.386966,95745.0,95744.0,0.007]
[1739894246862,0.455466,95745.0,95744.0,0.007]
[1739894247701,0.55796965,95745.0,95744.0,0.007]
[1739894247911,0.55796965,95745.0,95729.0,0.01942919]
[1739894247912,0.30669,95730.0,95729.0,0.01942919]
[1739894248347,0.1567,95724.0,95723.0,0.0003404]
[1739894249288,0.156695,95727.0,95723.0,0.0003404]
[1739894249490,0.01637262,95728.0,95723.0,0.0003404]
[1739894249917,0.208927,95727.0,95723.0,0.0003404]
[1739894250119,0.156699,95725.0,95723.0,0.0003404]
[1739894250521,0.15,95734.0,95724.0,0.10250365]
[1739894250744,0.15,95728.0,95725.0,0.0189244]
[1739894250923,0.15,95728.0,95726.0,0.10250365]
[1739894251124,0.01637215,95741.0,95726.0,0.10250365]
[1739894251355,0.156669,95744.0,95727.0,0.00104454]
[1739894251701,0.156676,95739.0,95729.0,0.156692]
[1739894251901,0.15,95749.0,95730.0,0.10250365]
[1739894252100,0.208907,95737.0,95730.0,0.10250365]
[1739894252305,0.156682,95736.0,95731.0,0.02699915]
[1739894252534,0.156682,95736.0,95732.0,0.10250365]
[1739894252746,0.15,95749.0,95732.0,0.10250365]
[1739894252948,0.15668,95737.0,95732.0,0.10250365]
[1739894253080,0.156677,95739.0,95732.0,0.10250365]
[1739894253290,0.156678,95738.0,95732.0,0.10250365]
[1739894253490,0.156678,95738.0,95733.0,0.02591977]
[1739894253702,0.156678,95738.0,95734.0,0.10250365]
[1739894254220,0.2089,95740.0,95734.0,0.10250365]
[1739894254392,0.156682,95735.0,95734.0,0.10250365]
[1739894254574,0.15,95743.0,95723.0,0.0003404]
[1739894254777,0.156684,95734.0,95733.0,0.001]
[1739894255101,0.156687,95732.0,95724.0,0.10250365]
[1739894255326,0.208896,95741.0,95724.0,0.10250365]
[1739894255478,0.15669,95731.0,95724.0,0.10250365]
[1739894255714,0.15,95743.0,95725.0,0.0341949]
[1739894255917,0.208892,95743.0,95731.0,0.156688]
[1739894256123,0.156678,95738.0,95732.0,0.10250365]
[1739894256326,0.14707751,95760.0,95732.0,0.10250365]
[1739894256583,0.14707751,95760.0,95735.0,0.1243]
[1739894256791,0.14707751,95760.0,95736.0,0.10250365]
[1739894256956,0.208849,95763.0,95736.0,0.10354812]